Cogmind - Beta 13 @@@ ROGUE MODE // 2024.07.24 @ 00:46:45 Player: Nell Result: Destroyed by Y-45 Defender with Beam Rifle Performance ------------- Evolutions (0) 0 Regions Visited (2) 400 Robots Destroyed (11) 55 Value Destroyed (146) 146 Prototype IDs (0) 0 Alien Tech Used (0) 0 Bonus (0) 0 TOTAL SCORE: 601 Bonus ------- None Cogmind --------- Core Integrity 0/250 Matter 400/400 Energy 125/125 System Corruption 0% Temperature Cool (9) Movement Rolling (80) Location -10/Mines Parts ------- > --- POWER (1) -------- Light Ion Engine > --- PROPULSION (2) --- Wheel > --- UTILITY (2) ------ Medium Matter Pod Structural Scanner > --- WEAPON (2) ------- Makeshift Hammer > --- INVENTORY (5) ---- Light Ion Engine Medium Matter Pod (100) Signal Interpreter Small Laser Shock Trap Peak State ------------ > --- POWER ------------ Light Ion Engine > --- PROPULSION ------- Wheel Compact Wheel > --- UTILITY ---------- Medium Matter Pod Structural Scanner > --- WEAPON ----------- EM Pulse Gun Makeshift Hammer > --- INVENTORY -------- Light Ion Engine Wheel Medium Matter Pod Signal Interpreter Small Laser [Rating: 10] Favorites ----------- Power Light Ion Engine Engine Light Ion Engine Propulsion Wheel Wheel Wheel Utility Medium Matter Pod Device Improved Terrain Scanner Storage Medium Matter Pod Weapon EM Pulse Gun Energy Gun EM Pulse Gun Impact Weapon Makeshift Hammer Build | -11 -10 -10 ------- Run | Yrd Mat Min Slots Evolved . | . . . Power . | . . . Propulsion . | . . . Utility . | . . . Weapon . | . . . Parts Attached 12 | 6 2 4 Power 1 | 1 . . Engine 1 | 1 . . Core . | . . . Reactor . | . . . Propulsion 4 | 2 1 1 Treads . | . . . Leg . | . . . Wheel 4 | 2 1 1 Hover . | . . . Flight . | . . . Utility 3 | 1 1 1 Device 2 | 1 . 1 Storage 1 | . 1 . Processor . | . . . Hackware . | . . . Protection . | . . . Artifact . | . . . Weapon 4 | 2 . 2 Energy Gun 3 | 2 . 1 Energy Cannon . | . . . Ballistic Gun . | . . . Ballistic Cannon . | . . . Launcher . | . . . Special Weapon . | . . . Impact Weapon 1 | . . 1 Slashing Weapon . | . . . Piercing Weapon . | . . . Special Melee Weapon . | . . . Unidentified Prototypes . | . . . Parts Lost 3 | . . 3 Power . | . . . Propulsion 1 | . . 1 Utility . | . . . Weapon 2 | . . 2 Highest Loss Streak 2 | . . 2 To Critical Strikes . | . . . Average Slot Usage (%) 98 | . 98 98 Engine 14 | . 14 14 Wheel 27 | . 28 27 Device 14 | . 14 14 Storage 13 | . 12 14 Energy Gun 24 | . 28 22 Impact Weapon 3 | . . 4 Naked Turns . | . . . Heaviest Build 11 | 8 10 11 Greatest Support 26 | 20 26 26 Greatest Overweight (x) . | . . . Average Overweight (x) . | . . . Largest Inventory Capacity 5 | 5 5 5 Average Capacity 5 | 5 5 5 Most Carried 5 | 5 5 5 Average Carried 3 | 1 2 4 Final Capacity 5 | 5 5 5 Final Carried 5 | 5 5 5 Class Distribution -------------------- 100% | Mutant Dominant Class ---------------- Mutant | -10/Materials Mutant | -10/Mines Resources | -11 -10 -10 ----------- Run | Yrd Mat Min Matter Collected 515 | 260 112 143 Remotely . | . . . Salvage Created 397 | 107 112 178 Parts 23 | 6 5 12 Haulers Intercepted . | . . . Recyclers Shooed . | . . . Parts Field Recycled . | . . . Retrieved Matter . | . . . Parts Self-Destructed . | . . . Prevented . | . . . Kills | -11 -10 -10 ------- Run | Yrd Mat Min Combat Hostiles Destroyed 3 | 1 . 2 Guns 3 | 1 . 2 Classes Destroyed 5 | 3 2 . Worker 3 | 1 . 2 Builder 3 | . 1 2 Tunneler 1 | 1 . . Recycler 1 | . 1 . Grunt 3 | 1 . 2 Best Kill Streak 3 | 2 2 3 Combat Bots Only 2 | 1 . 2 Max Kills in Single Turn 1 | 1 1 1 Gunslinging . | . . . Exploded . | . . . Melee . | . . . Uniques/NPCs Destroyed . | . . . Combat | -11 -10 -10 -------- Run | Yrd Mat Min Hostile Shots Fired 49 | 2 2 45 Missed 13 | 2 1 10 Damage Taken 540 | . 10 530 Core 255 | . . 255 Absorbed by Shields . | . . . Core Remaining (%) 100 | 100 . . Volleys Fired 21 | 5 7 9 Largest 2 | 2 2 2 Hottest 80 | 80 80 80 Shots Fired 42 | 10 14 18 Gun 42 | 10 14 18 Cannon . | . . . Launcher . | . . . Special . | . . . Kinetic . | . . . Thermal 5 | . . 5 Explosive . | . . . Electromagnetic 37 | 10 14 13 Robot Hit Streak 4 | 2 3 4 Robot Miss Streak 8 | 1 8 2 Penetration Max . | . . . Secondary Targets 1 | . . 1 Max Gunslinging Chain 1 | . . 1 Shots Hit Robots 26 | 5 4 17 Core Hits 14 | 4 3 7 Critical Kills 1 | . . 1 Critical Parts Destroyed . | . . . Critical Strikes 1 | . . 1 Smash 1 | . . 1 Melee Attacks 11 | . . 11 Impact 11 | . . 11 Slashing . | . . . Piercing . | . . . Sneak Attacks 2 | . . 2 Combat Hostiles . | . . . Follow-up Attacks . | . . . Damage Inflicted 638 | 92 65 481 Guns 279 | 68 65 146 Cannons . | . . . Explosions 24 | 24 . . Melee 335 | . . 335 Ramming . | . . . Kinetic . | . . . Thermal 35 | 24 . 11 Explosive . | . . . Electromagnetic 268 | 68 65 135 Impact 335 | . . 335 Slashing . | . . . Piercing . | . . . Highest Corruption . | . . . Average Corruption . | . . . Corruption Purged . | . . . Corruption Blocked . | . . . Overload Shots . | . . . Overflow Damage 51 | . . 51 Projectiles . | . . . Explosions . | . . . Melee 51 | . . 51 Knockbacks 1 | . . 1 Impact 1 | . . 1 Kinetic . | . . . Secondary . | . . . Self-Inflicted Damage . | . . . Shots . | . . . Rammed . | . . . Targets Rammed . | . . . Kicked . | . . . Crushed . | . . . Highest Temperature 184 | 72 72 184 Average Temperature 53 | 33 29 78 Received Heat Transfer 201 | . 6 195 Siege Activations . | . . . Robots Corrupted . | . . . Combat Hostiles . | . . . Parts Fried 3 | . . 3 Impact Corruptions 3 | . . 3 Robots Melted . | . . . Combat Hostiles . | . . . Parts Melted . | . . . Heat Transferred 75 | 50 . 25 Parts Sabotaged . | . . . Parts Stolen . | . . . Parts Stripped . | . . . Power Chain Reactions 1 | 1 . . Alert | -11 -10 -10 ------- Run | Yrd Mat Min Peak Influence 112 | 30 59 112 Initial 22 | . 19 22 Average 41 | 9 26 59 Maximum Alert Level . | . . . Low Security (%) 100 | 100 100 100 Level 1 . | . . . Level 2 . | . . . Level 3 . | . . . Level 4 . | . . . Level 5 . | . . . High Security . | . . . Max Security . | . . . Squads Dispatched 1 | . 1 . Investigation . | . . . Extermination . | . . . Reinforcement 1 | . 1 . Assault . | . . . Garrison . | . . . Intercept . | . . . Searches Triggered . | . . . Construction Impeded . | . . . Haulers Reinforced . | . . . Active Scanning Responses . | . . . Cargo Convoy Interrupts . | . . . Stealth | -11 -10 -10 --------- Run | Yrd Mat Min Distress Signals . | . . . Communications Jammed . | . . . Distress Signals . | . . . Times Spotted 14 | 1 8 5 Peak Tracking Total 6 | 1 6 2 Tactical Retreats 2 | . 1 1 Traps | -11 -10 -10 ------- Run | Yrd Mat Min Traps Triggered . | . . . Indirectly . | . . . Trap Hack Attempts . | . . . Triggered . | . . . Disarmed . | . . . Reprogrammed . | . . . Reused . | . . . Traps Extracted . | . . . Installed . | . . . Triggered . | . . . Most Traps Carried 1 | . . 1 Machines | -11 -10 -10 ---------- Run | Yrd Mat Min Machines Disabled . | . . . Max in Single Turn . | . . . Machines Repaired . | . . . Machines Dismantled . | . . . Machines Sabotaged . | . . . Overloaded Fab Kills . | . . . Hacking | -11 -10 -10 --------- Run | Yrd Mat Min Machines Accessed 1 | . 1 . Terminals . | . . . Fabricators . | . . . Repair Stations . | . . . Recycling Units 1 | . 1 . Scanalyzers . | . . . Garrison Access . | . . . Total Hacks 3 | . 3 . Successful 3 | . 3 . Failed . | . . . Catastrophic . | . . . Database Lockouts . | . . . Manual . | . . . Terminals . | . . . Fabricators . | . . . Repair Stations . | . . . Recycling Units 3 | . 3 . Scanalyzers . | . . . Garrison Access . | . . . Terminal Hacks . | . . . Fabricator Hacks . | . . . Repair Station Hacks . | . . . Recycling Unit Hacks 3 | . 3 . Recycle Component 3 | . 3 . Scanalyzer . | . . . Garrison Access Hacks . | . . . Unauthorized Hacks . | . . . Terminals . | . . . Fabricators . | . . . Repair Stations . | . . . Recycling Units . | . . . Scanalyzers . | . . . Garrison Access . | . . . Data Cores Recovered . | . . . Used . | . . . Hacking Detections 1 | . 1 . Full Trace Events 1 | . 1 . Feedback Events . | . . . Feedback Blocked . | . . . Robot Schematics Acquired . | . . . Robots Built . | . . . Authchips . | . . . Time . | . . . Total Robot Build Rating . | . . . Part Schematics Acquired . | . . . Parts Built . | . . . Authchips . | . . . Time . | . . . Total Part Build Rating . | . . . Parts Repaired . | . . . Time . | . . . Parts Recycled 3 | . 3 . Recycled Matter . | . . . Retrieved Matter . | . . . Retrieved Components . | . . . Parts Scanalyzed . | . . . Part Schematics Acquired . | . . . Parts Damaged . | . . . Bothacking | -11 -10 -10 ------------ Run | Yrd Mat Min Used RIF Installer . | . . . Robots Hacked . | . . . Non-combat . | . . . Combat . | . . . Robot Hacks Applied . | . . . Relay Couplers Released . | . . . Fabnet Peak Effective % . | . . . Robots Rewired . | . . . Allies Hacked . | . . . Hacks Repelled . | . . . Allies | -11 -10 -10 -------- Run | Yrd Mat Min Total Allies . | . . . Largest Group . | . . . Highest-Rated Group . | . . . Highest-Rated Ally . | . . . Total Orders . | . . . Ally Attacks . | . . . Total Damage . | . . . Kills . | . . . Allies Corrupted . | . . . Allies Melted . | . . . Intel | -11 -10 -10 ------- Run | Yrd Mat Min Robot Analysis Total . | . . . Derelict Logs Recovered . | . . . Drone Launches . | . . . Drone Recoveries . | . . . Exploration | -11 -10 -10 ------------- Run | Yrd Mat Min Turns Passed 485 | 93 123 269 Spaces Moved 384 | 86 87 211 Core 16 | 16 . . Treads . | . . . Legs . | . . . Wheels 368 | 70 87 211 Hover . | . . . Flight . | . . . Fastest Speed 50 | 50 80 90 Average Speed 85 | 74 86 90 Slowest Speed 90 | 80 90 90 Overloaded Moves . | . . . Propulsion Burnouts . | . . . Robots Hopped . | . . . Cave-ins Triggered . | . . . Exploration Rate (%) 28 | 6 20 59 Regions Visited 2 Branch Regions 1 Pre-discovered Areas . | . . . Known Exits Taken . | . . . Unknown Exits Taken 2 | 1 1 . Scrap Searched 1 | . . 1 Spaces Dug . | . . . Terrain Destroyed . | . . . Melee . | . . . Projectile . | . . . AOE . | . . . Terrain Rammed . | . . . Walls Destroyed . | . . . Machines Disabled . | . . . Actions | -11 -10 -10 --------- Run | Yrd Mat Min Total 481 | 101 119 261 Wait 41 | . 21 20 Move 382 | 85 86 211 Hop . | . . . Pick Up 10 | 5 3 2 Fast Attach 9 | 6 1 2 Attach 1 | . . 1 Detach 1 | . . 1 Swap 2 | . 1 1 Drop 3 | . . 3 Fire 21 | 5 7 9 Melee 11 | . . 11 Ram . | . . . Kick . | . . . Crush . | . . . Escape Stasis . | . . . Rewire . | . . . Trap . | . . . Miscellaneous . | . . . Route ------- -11/Scrapyard -10/Materials -10/Mines History --------- Turn | Location | Event 2 | -11/Scrapyard | Met Revision 17 64 | -11/Scrapyard | Discovered new exit (range 8) 94 | -11/Scrapyard | Entered Materials 199 | -10/Materials | Discovered new exit (range 10) 217 | -10/Materials | Entered Mines 317 | -10/Mines | Build established: Mutant 390 | -10/Mines | A weapon hastily lodged in a ceiling crevice suddenly fell to the ground 429 | -10/Mines | Found a hidden stash of uninstalled traps 470 | -10/Mines | Core integrity fell below 50% 481 | -10/Mines | Core integrity fell below 20% 486 | -10/Mines | Destroyed by Y-45 Defender with Beam Rifle Last Messages --------------- K-01 Serf system corrupted by crushing effect. K-01 Serf system terminally corrupted. Wheel fried. Sneak attack on K-01 Serf. K-01 Serf suffers critical hit (Smash). K-01 Serf destroyed. K-01 Serf collects debris. T-07 Excavator is excavating. A stash of uninstalled traps is collected here! Dropped Wheel. Acquired Shock Trap. K-01 Serf collects debris. EM Pulse Gun destroyed. K-01 Serf collects debris. Com. Wheel destroyed. K-01 Serf collects debris. [Achievement: First Step to Greatness] The achievement interface (ESC then open Records) offers an effective way to explore all of your earned achievements as well as seek out new goals for future runs. Map ----- +----------------------------------------------------+ | ???????????????????? ##??????# """ ##????##? | | ???????????????????? ##?????## """ ###????##? | | ???????????????????? ##?????# ########### | | ?????????????????### ###????# ###### # | | ?????????????????### ###????# ### | | ????????????????### ##????## #### #### | | ????????????????### ##???#?## #### ##?##### | | ????????????????## #????????# #?????## | | ???????????????### ###???????## #?#?#??# | | ??????????????#### ###????????### #??????? | | ?????????????#### ##?????????## %######??##??? | | ????????????#### ##?????????## ##???#??????? | | ????????????### ####???#????## =##???#??????# | | ????????????## & ####?????#??##=%##??????????? | | ???????????### &=& ############## ##??######### | | ?????????##### & ############# !############# | | ?????????#### ### #### ##### | | ?????????## =%% #### ##?? | | ?????????### #### !### %### ##?? | | ?????????########## ### #### ### ###?? | | ??????????#####?########### ###### ### ####? | | ?????????????????########## ###### ## ###? | | ??????????????????###!!## ### ##? | | ??????????????????##"!! # ### ##? | | ??????????????????## Y ### ###? | | ??????????????????## Y@ #### #####? | | ??????????????????##"[] # ##### #####?? | | ??????????????????###]!## ####### ####???? | | ??????????????????####### ##?##########????? | | ???????????????????###### k ##???#######?????? | | ???????????????????????###########???????????????? | | ???????????????????????###########???????????????? | | | | | | | | | | | | | | | | | | | | | | | | | | | | | | | | | | | | | +----------------------------------------------------+ Best States ------------- Heat Dissipation 25 Energy Generation 10 Energy Capacity 125 Matter Stores 400 Matter Capacity 400 Sight Range 16 Terrain Scan Range 16 Terrain Scan Density 10 Evasion (%) 50 Item Schematics ----------------- None Robot Schematics ------------------ None Fabricated ------------ Nothing Alien Tech Used ----------------- None Achievements -------------- First Step to Greatness Challenges ------------ None Game ------ Seed EtherialBackupActivator Manual? 0 Play Time 00:16:07 Cumulative 2.4 hours Start 2024.07.24 @ 00:29:29 End 2024.07.24 @ 00:46:45 Sessions 1 Manual Loads 0 Difficulty Rogue Special Mode None Game No. 3 Rogue 3 Adventurer 0 Explorer 0 Win Type - Total 0 Types 0/0/0/0/0/0/0/0/0 Lore% 1 Gallery% 4 Achievement% 3 Wizard Run 0 Options --------- Layout 0 ASCII 0 Keyboard 0 Movement Arrows Keybinds 0 Fullscreen 2 Font 24/Smallcaps Map View 76x50 Zoom Use 0% Tactical HUD 0 Map Filters NONE Filters NONE Steam 1 RUN: f1399b9a-9773-4977-b9f0-7bbf436ce238